Workbook

Sheet tips
B2: TEMPLATE TIPS
B4: Is there an easy way to jump between the Expense Trends sheet and monthly expense details?
C5: To quickly navigate to a specific month's expenses, click the associated button above the chart, such as the Jan button. Then, to return to the Expense Trends sheet, click the Summary button near the top of the sheet.
B6: How do I add a new Expense type to the Expense Summary or new monthly expenses?
C7: The Expense Summary below the chart and the expense details for each month are Excel tables. To add new rows to any Excel table, do one of the following:
C8: ● | D8: If the table does not have a Total row, start typing below the table and it will automatically expand when you press the Enter or Tab key.
C9: ● | D9: Place your cell pointer in the last cell above the Total row, such as the total for the last expense, and then press the Tab key.
C10: ● | D10: Right-click in the table and on the pop up menu, point to Insert, and then click Table Rows Above or Table Rows Below.
C11: ● | D11: In the bottom right corner of the table, place your mouse on the table sizing handle and drag down to increase the number of available table rows.

Sheet summary
B2: EXPENSE TRENDS
B18: Expenses | C18: Jan | D18: Feb | E18: Mar | F18: Apr | G18: May | H18: Jun | I18: Jul | J18: Aug | K18: Sep | L18: Oct | M18: Nov | N18: Dec | O18: Total | P18: Trend
B19: Expense 1 | C19: =SUMIFS(ExpJan[Amount],ExpJan[Category],ExpenseSummary[[#This Row],[Expenses]]) -> 33.00 | D19: =SUMIFS(ExpFeb[Amount],ExpFeb[Category],ExpenseSummary[[#This Row],[Expenses]]) -> 375.00 | E19: =SUMIFS(ExpMar[Amount],ExpMar[Category],ExpenseSummary[[#This Row],[Expenses]]) -> 33.00 | F19: =SUMIFS(ExpApr[Amount],ExpApr[Category],ExpenseSummary[[#This Row],[Expenses]]) -> 45.00 | G19: =SUMIFS(ExpMay[Amount],ExpMay[Category],ExpenseSummary[[#This Row],[Expenses]]) -> 375.00 | H19: =SUMIFS(ExpJun[Amount],ExpJun[Category],ExpenseSummary[[#This Row],[Expenses]]) -> 201.00 | I19: =SUMIFS(ExpJul[Amount],ExpJul[Category],ExpenseSummary[[#This Row],[Expenses]]) -> 0.00 | J19: =SUMIFS(ExpAug[Amount],ExpAug[Category],ExpenseSummary[[#This Row],[Expenses]]) -> 0.00 | K19: =SUMIFS(ExpSep[Amount],ExpSep[Category],ExpenseSummary[[#This Row],[Expenses]]) -> 0.00 | L19: =SUMIFS(ExpOct[Amount],ExpOct[Category],ExpenseSummary[[#This Row],[Expenses]]) -> 0.00 | M19: =SUMIFS(ExpNov[Amount],ExpNov[Category],ExpenseSummary[[#This Row],[Expenses]]) -> 0.00 | N19: =SUMIFS(ExpDec[Amount],ExpDec[Category],ExpenseSummary[[#This Row],[Expenses]]) -> 201.00 | O19: =SUM(ExpenseSummary[[#This Row],[Jan]:[Dec]]) -> 1,263.00
B20: Expense 2 | C20: =SUMIFS(ExpJan[Amount],ExpJan[Category],ExpenseSummary[[#This Row],[Expenses]]) -> 238.00 | D20: =SUMIFS(ExpFeb[Amount],ExpFeb[Category],ExpenseSummary[[#This Row],[Expenses]]) -> 238.00 | E20: =SUMIFS(ExpMar[Amount],ExpMar[Category],ExpenseSummary[[#This Row],[Expenses]]) -> 238.00 | F20: =SUMIFS(ExpApr[Amount],ExpApr[Category],ExpenseSummary[[#This Row],[Expenses]]) -> 123.00 | G20: =SUMIFS(ExpMay[Amount],ExpMay[Category],ExpenseSummary[[#This Row],[Expenses]]) -> 111.00 | H20: =SUMIFS(ExpJun[Amount],ExpJun[Category],ExpenseSummary[[#This Row],[Expenses]]) -> 98.00 | I20: =SUMIFS(ExpJul[Amount],ExpJul[Category],ExpenseSummary[[#This Row],[Expenses]]) -> 0.00 | J20: =SUMIFS(ExpAug[Amount],ExpAug[Category],ExpenseSummary[[#This Row],[Expenses]]) -> 0.00 | K20: =SUMIFS(ExpSep[Amount],ExpSep[Category],ExpenseSummary[[#This Row],[Expenses]]) -> 0.00 | L20: =SUMIFS(ExpOct[Amount],ExpOct[Category],ExpenseSummary[[#This Row],[Expenses]]) -> 0.00 | M20: =SUMIFS(ExpNov[Amount],ExpNov[Category],ExpenseSummary[[#This Row],[Expenses]]) -> 0.00 | N20: =SUMIFS(ExpDec[Amount],ExpDec[Category],ExpenseSummary[[#This Row],[Expenses]]) -> 440.00 | O20: =SUM(ExpenseSummary[[#This Row],[Jan]:[Dec]]) -> 1,486.00
B21: Expense 3 | C21: =SUMIFS(ExpJan[Amount],ExpJan[Category],ExpenseSummary[[#This Row],[Expenses]]) -> 110.00 | D21: =SUMIFS(ExpFeb[Amount],ExpFeb[Category],ExpenseSummary[[#This Row],[Expenses]]) -> 110.00 | E21: =SUMIFS(ExpMar[Amount],ExpMar[Category],ExpenseSummary[[#This Row],[Expenses]]) -> 110.00 | F21: =SUMIFS(ExpApr[Amount],ExpApr[Category],ExpenseSummary[[#This Row],[Expenses]]) -> 125.00 | G21: =SUMIFS(ExpMay[Amount],ExpMay[Category],ExpenseSummary[[#This Row],[Expenses]]) -> 333.00 | H21: =SUMIFS(ExpJun[Amount],ExpJun[Category],ExpenseSummary[[#This Row],[Expenses]]) -> 122.00 | I21: =SUMIFS(ExpJul[Amount],ExpJul[Category],ExpenseSummary[[#This Row],[Expenses]]) -> 0.00 | J21: =SUMIFS(ExpAug[Amount],ExpAug[Category],ExpenseSummary[[#This Row],[Expenses]]) -> 0.00 | K21: =SUMIFS(ExpSep[Amount],ExpSep[Category],ExpenseSummary[[#This Row],[Expenses]]) -> 0.00 | L21: =SUMIFS(ExpOct[Amount],ExpOct[Category],ExpenseSummary[[#This Row],[Expenses]]) -> 0.00 | M21: =SUMIFS(ExpNov[Amount],ExpNov[Category],ExpenseSummary[[#This Row],[Expenses]]) -> 0.00 | N21: =SUMIFS(ExpDec[Amount],ExpDec[Category],ExpenseSummary[[#This Row],[Expenses]]) -> 122.00 | O21: =SUM(ExpenseSummary[[#This Row],[Jan]:[Dec]]) -> 1,032.00
B22: Expense 4 | C22: =SUMIFS(ExpJan[Amount],ExpJan[Category],ExpenseSummary[[#This Row],[Expenses]]) -> 426.00 | D22: =SUMIFS(ExpFeb[Amount],ExpFeb[Category],ExpenseSummary[[#This Row],[Expenses]]) -> 84.00 | E22: =SUMIFS(ExpMar[Amount],ExpMar[Category],ExpenseSummary[[#This Row],[Expenses]]) -> 84.00 | F22: =SUMIFS(ExpApr[Amount],ExpApr[Category],ExpenseSummary[[#This Row],[Expenses]]) -> 426.00 | G22: =SUMIFS(ExpMay[Amount],ExpMay[Category],ExpenseSummary[[#This Row],[Expenses]]) -> 125.00 | H22: =SUMIFS(ExpJun[Amount],ExpJun[Category],ExpenseSummary[[#This Row],[Expenses]]) -> 187.00 | I22: =SUMIFS(ExpJul[Amount],ExpJul[Category],ExpenseSummary[[#This Row],[Expenses]]) -> 0.00 | J22: =SUMIFS(ExpAug[Amount],ExpAug[Category],ExpenseSummary[[#This Row],[Expenses]]) -> 0.00 | K22: =SUMIFS(ExpSep[Amount],ExpSep[Category],ExpenseSummary[[#This Row],[Expenses]]) -> 0.00 | L22: =SUMIFS(ExpOct[Amount],ExpOct[Category],ExpenseSummary[[#This Row],[Expenses]]) -> 0.00 | M22: =SUMIFS(ExpNov[Amount],ExpNov[Category],ExpenseSummary[[#This Row],[Expenses]]) -> 0.00 | N22: =SUMIFS(ExpDec[Amount],ExpDec[Category],ExpenseSummary[[#This Row],[Expenses]]) -> 187.00 | O22: =SUM(ExpenseSummary[[#This Row],[Jan]:[Dec]]) -> 1,519.00
B23: Expense 5 | C23: =SUMIFS(ExpJan[Amount],ExpJan[Category],ExpenseSummary[[#This Row],[Expenses]]) -> 54.00 | D23: =SUMIFS(ExpFeb[Amount],ExpFeb[Category],ExpenseSummary[[#This Row],[Expenses]]) -> 54.00 | E23: =SUMIFS(ExpMar[Amount],ExpMar[Category],ExpenseSummary[[#This Row],[Expenses]]) -> 109.00 | F23: =SUMIFS(ExpApr[Amount],ExpApr[Category],ExpenseSummary[[#This Row],[Expenses]]) -> 98.00 | G23: =SUMIFS(ExpMay[Amount],ExpMay[Category],ExpenseSummary[[#This Row],[Expenses]]) -> 33.00 | H23: =SUMIFS(ExpJun[Amount],ExpJun[Category],ExpenseSummary[[#This Row],[Expenses]]) -> 441.00 | I23: =SUMIFS(ExpJul[Amount],ExpJul[Category],ExpenseSummary[[#This Row],[Expenses]]) -> 0.00 | J23: =SUMIFS(ExpAug[Amount],ExpAug[Category],ExpenseSummary[[#This Row],[Expenses]]) -> 0.00 | K23: =SUMIFS(ExpSep[Amount],ExpSep[Category],ExpenseSummary[[#This Row],[Expenses]]) -> 0.00 | L23: =SUMIFS(ExpOct[Amount],ExpOct[Category],ExpenseSummary[[#This Row],[Expenses]]) -> 0.00 | M23: =SUMIFS(ExpNov[Amount],ExpNov[Category],ExpenseSummary[[#This Row],[Expenses]]) -> 0.00 | N23: =SUMIFS(ExpDec[Amount],ExpDec[Category],ExpenseSummary[[#This Row],[Expenses]]) -> 99.00 | O23: =SUM(ExpenseSummary[[#This Row],[Jan]:[Dec]]) -> 888.00
B24: Total | C24: =SUBTOTAL(109,ExpenseSummary[Jan]) -> 861.00 | D24: =SUBTOTAL(109,ExpenseSummary[Feb]) -> 861.00 | E24: =SUBTOTAL(109,ExpenseSummary[Mar]) -> 574.00 | F24: =SUBTOTAL(109,ExpenseSummary[Apr]) -> 817.00 | G24: =SUBTOTAL(109,ExpenseSummary[May]) -> 977.00 | H24: =SUBTOTAL(109,ExpenseSummary[Jun]) -> 1,049.00 | I24: =SUBTOTAL(109,ExpenseSummary[Jul]) -> 0.00 | J24: =SUBTOTAL(109,ExpenseSummary[Aug]) -> 0.00 | K24: =SUBTOTAL(109,ExpenseSummary[Sep]) -> 0.00 | L24: =SUBTOTAL(109,ExpenseSummary[Oct]) -> 0.00 | M24: =SUBTOTAL(109,ExpenseSummary[Nov]) -> 0.00 | N24: =SUBTOTAL(109,ExpenseSummary[Dec]) -> 1,049.00 | O24: =SUBTOTAL(109,ExpenseSummary[Total]) -> 6,188.00

Sheet jan
B2: JANUARY EXPENSES
B4: Date | C4: PO# | D4: Amount | E4: Category | F4: Description
B5: 2011-01-04 | C5: A-12345 | D5: 33.00 | E5: Expense 1 | F5: Supplies
B6: 2011-01-05 | C6: A-12346 | D6: 238.00 | E6: Expense 2
D7: 342.00 | E7: Expense 4
D8: 110.00 | E8: Expense 3
D9: 84.00 | E9: Expense 4
D10: 54.00 | E10: Expense 5
B11: Total | D11: =SUBTOTAL(109,ExpJan[Amount]) -> 861.00

Sheet feb
B2: FEBRUARY EXPENSES
B4: Date | C4: PO# | D4: Amount | E4: Category | F4: Description
B5: 2011-02-03 | C5: A-12345 | D5: 33.00 | E5: Expense 1 | F5: Supplies
B6: 2011-02-04 | C6: A-12346 | D6: 238.00 | E6: Expense 2
D7: 342.00 | E7: Expense 1
D8: 110.00 | E8: Expense 3
D9: 84.00 | E9: Expense 4
D10: 54.00 | E10: Expense 5
B11: Total | D11: =SUBTOTAL(109,ExpFeb[Amount]) -> 861.00

Sheet mar
B2: MARCH EXPENSES
B4: Date | C4: PO# | D4: Amount | E4: Category | F4: Description
B5: 2011-03-04 | C5: A-12345 | D5: 33.00 | E5: Expense 1 | F5: Supplies
B6: 2011-03-06 | C6: A-12346 | D6: 238.00 | E6: Expense 2
D7: 55.00 | E7: Expense 5
D8: 110.00 | E8: Expense 3
D9: 84.00 | E9: Expense 4
D10: 54.00 | E10: Expense 5
B11: Total | D11: =SUBTOTAL(109,ExpMar[Amount]) -> 574.00

Sheet apr
B2: APRIL EXPENSES
B4: Date | C4: PO# | D4: Amount | E4: Category | F4: Description
B5: 2011-04-04 | C5: A-12345 | D5: 45.00 | E5: Expense 1 | F5: Supplies
B6: 2011-04-08 | C6: A-12346 | D6: 123.00 | E6: Expense 2
D7: 342.00 | E7: Expense 4
D8: 125.00 | E8: Expense 3
D9: 84.00 | E9: Expense 4
D10: 98.00 | E10: Expense 5
B11: Total | D11: =SUBTOTAL(109,ExpApr[Amount]) -> 817.00

Sheet may
B2: MAY EXPENSES
B4: Date | C4: PO# | D4: Amount | E4: Category | F4: Description
B5: 2011-05-03 | C5: A-12345 | D5: 33.00 | E5: Expense 1 | F5: Supplies
B6: 2011-05-08 | C6: A-12346 | D6: 111.00 | E6: Expense 2
D7: 342.00 | E7: Expense 1
D8: 333.00 | E8: Expense 3
D9: 125.00 | E9: Expense 4
D10: 33.00 | E10: Expense 5
B11: Total | D11: =SUBTOTAL(109,ExpMay[Amount]) -> 977.00

Sheet jun
B2: JUNE EXPENSES
B4: Date | C4: PO# | D4: Amount | E4: Category | F4: Description
B5: 2011-06-07 | C5: A-12345 | D5: 201.00 | E5: Expense 1 | F5: Supplies
B6: 2011-06-08 | C6: A-12346 | D6: 98.00 | E6: Expense 2
D7: 342.00 | E7: Expense 5
D8: 122.00 | E8: Expense 3
D9: 187.00 | E9: Expense 4
D10: 99.00 | E10: Expense 5
B11: Total | D11: =SUBTOTAL(109,ExpJun[Amount]) -> 1,049.00

Sheet jul
B2: JULY EXPENSES
B4: Date | C4: PO# | D4: Amount | E4: Category | F4: Description
B5: 2011-07-09 | C5: A-12345 | E5: Expense 1 | F5: Supplies
B6: 2011-07-14 | C6: A-12346 | E6: Expense 2
E7: Expense 2
E8: Expense 3
E9: Expense 4
E10: Expense 5
B11: Total | D11: =SUBTOTAL(109,ExpJul[Amount]) -> 0.00

Sheet aug
B2: AUGUST EXPENSES
B4: Date | C4: PO# | D4: Amount | E4: Category | F4: Description
B5: 2011-08-08 | C5: A-12345 | E5: Expense 1 | F5: Supplies
B6: 2011-08-09 | C6: A-12346 | E6: Expense 2
E7: Expense 2
E8: Expense 3
E9: Expense 4
E10: Expense 5
B11: Total | D11: =SUBTOTAL(109,ExpAug[Amount]) -> 0.00

Sheet sep
B2: SEPTEMBER EXPENSES
B4: Date | C4: PO# | D4: Amount | E4: Category | F4: Description
B5: 2011-09-09 | C5: A-12345 | E5: Expense 1 | F5: Supplies
B6: 2011-09-15 | C6: A-12346 | E6: Expense 2
E7: Expense 2
E8: Expense 3
E9: Expense 4
E10: Expense 5
B11: Total | D11: =SUBTOTAL(109,ExpSep[Amount]) -> 0.00

Sheet oct
B2: OCTOBER EXPENSES
B4: Date | C4: PO# | D4: Amount | E4: Category | F4: Description
B5: 2011-10-10 | C5: A-12345 | E5: Expense 1 | F5: Supplies
B6: 2011-10-21 | C6: A-12346 | E6: Expense 2
E7: Expense 2
E8: Expense 3
E9: Expense 4
E10: Expense 5
B11: Total | D11: =SUBTOTAL(109,ExpOct[Amount]) -> 0.00

Sheet nov
B2: NOVEMBER EXPENSES
B4: Date | C4: PO# | D4: Amount | E4: Category | F4: Description
B5: 2011-11-14 | C5: A-12345 | E5: Expense 1 | F5: Supplies
B6: 2011-11-21 | C6: A-12346 | E6: Expense 2
E7: Expense 2
E8: Expense 3
E9: Expense 4
E10: Expense 5
B11: Total | D11: =SUBTOTAL(109,ExpNov[Amount]) -> 0.00

Sheet dec
B2: DECEMBER EXPENSES
B4: Date | C4: PO# | D4: Amount | E4: Category | F4: Description
B5: 2011-12-02 | C5: A-12345 | D5: 201.00 | E5: Expense 1 | F5: Supplies
B6: 2011-12-14 | C6: A-12346 | D6: 98.00 | E6: Expense 2
D7: 342.00 | E7: Expense 2
D8: 122.00 | E8: Expense 3
D9: 187.00 | E9: Expense 4
D10: 99.00 | E10: Expense 5
B11: Total | D11: =SUBTOTAL(109,ExpDec[Amount]) -> 1,049.00
